fUST/lending_fUST_20250902
["ID","MTS","AMOUNT","RATE_DAILY","PERIOD"]
[382969600,1756788068567,-300.0,0.00013276,2]
[382969601,1756788068590,-1200.0,0.00013276,2]
[382969602,1756788068612,-500.0,0.00013277,2]
[382969603,1756788068637,-500.0,0.00013277,2]
[382969604,1756788068663,-500.0,0.00013277,2]
[382969605,1756788068687,-2618.2481025,0.00013277,2]
[382969606,1756788068711,-500.0,0.00013277,2]
[382969607,1756788068735,-500.0,0.00013277,2]
[382969608,1756788068759,-500.0,0.00013277,2]
[382969609,1756788068781,-500.0,0.00013277,2]
[382969610,1756788068804,-500.0,0.00013277,2]
[382969611,1756788068826,-500.0,0.00013277,2]
[382969612,1756788068847,-500.0,0.00013277,2]
[382969613,1756788068872,-558.25905369,0.00013277,2]
[382969614,1756788068892,-500.0,0.00013282,2]
[382969615,1756788068915,-500.0,0.00013282,2]
[382969616,1756788068935,-500.0,0.00013282,2]
[382969617,1756788068956,-500.0,0.00013282,2]
[382969618,1756788068978,-500.0,0.00013282,2]
[382969619,1756788069000,-500.0,0.00013282,2]
[382969620,1756788069022,-500.0,0.00013282,2]
[382969621,1756788069046,-500.0,0.00013282,2]
[382969622,1756788069067,-197.46641746,0.00013282,2]
[382969623,1756788069089,-500.0,0.00013282,2]
[382969624,1756788069111,-500.0,0.00013282,2]
[382969625,1756788069135,-500.0,0.00013282,2]
[382969626,1756788069156,-500.0,0.00013282,2]
[382969627,1756788069177,-571.97158721,0.00013282,2]
[382969628,1756788069200,-500.0,0.00013282,2]
[382969629,1756788069222,-500.0,0.00013282,2]
[382969630,1756788069244,-500.0,0.00013282,2]
[382969631,1756788069267,-500.0,0.00013282,2]
[382969632,1756788069291,-500.0,0.00013282,2]
[382969633,1756788069319,-500.0,0.00013282,2]
[382969634,1756788069344,-500.0,0.00013282,2]
[382969635,1756788069369,-491.92313098,0.00013282,2]
[382969636,1756788069391,-307.2088783,0.00013282,2]
[382969637,1756788069415,-500.0,0.00013282,2]
[382969638,1756788069439,-500.0,0.00013282,2]
[382969639,1756788069461,-500.0,0.00013282,2]
[382969640,1756788069484,-500.0,0.00013282,2]
[382969641,1756788069506,-500.0,0.00013282,2]
[382969642,1756788069528,-500.0,0.00013282,2]
[382969643,1756788069551,-500.0,0.00013282,2]
[382969644,1756788069575,-500.0,0.00013282,2]
[382969645,1756788069598,-500.0,0.00013282,2]
[382969646,1756788069619,-300.57449692,0.00013282,2]
[382969647,1756788069641,-525.0,0.00013282,2]
[382969648,1756788069665,-615.32324816,0.00013282,2]
[382969649,1756788069689,-493.94104703,0.00013282,2]
[382969650,1756788069714,-500.0,0.00013282,2]
[382969651,1756788069743,-500.0,0.00013282,2]
[382969652,1756788069768,-500.0,0.00013282,2]
[382969653,1756788069791,-500.0,0.00013282,2]
[382969654,1756788069817,-500.0,0.00013282,2]
[382969655,1756788069839,-500.0,0.00013282,2]
[382969656,1756788069862,-500.0,0.00013282,2]
[382969657,1756788069884,-500.0,0.00013282,2]
[382969658,1756788069906,-500.0,0.00013282,2]
[382969659,1756788069930,-481.6350271,0.00013282,2]
[382969660,1756788069952,-500.0,0.00013282,2]
[382969661,1756788069975,-500.0,0.00013282,2]
[382969662,1756788069997,-500.0,0.00013282,2]
[382969663,1756788070019,-500.0,0.00013282,2]
[382969664,1756788070042,-500.0,0.00013282,2]
[382969665,1756788070064,-500.0,0.00013282,2]
[382969666,1756788070088,-500.0,0.00013282,2]
[382969667,1756788070110,-500.0,0.00013282,2]
[382969668,1756788070135,-500.0,0.00013282,2]
[382969669,1756788070157,-500.0,0.00013282,2]
[382969670,1756788070180,-500.0,0.00013282,2]
[382969671,1756788070203,-500.0,0.00013282,2]
[382969672,1756788070227,-500.0,0.00013282,2]
[382969673,1756788070249,-500.0,0.00013282,2]
[382969674,1756788070273,-500.0,0.00013282,2]
[382969675,1756788070296,-753.50246234,0.00013283,2]
[382969676,1756788070318,-151.0,0.00013283,2]
[382969677,1756788070341,-500.0,0.00013283,2]
[382969678,1756788070364,-151.0,0.00013283,2]
[382969679,1756788070389,-151.0,0.00013283,2]
[382969680,1756788070412,-151.0,0.00013283,2]
[382969681,1756788070434,-500.0,0.00013283,2]
[382969682,1756788070457,-151.0,0.00013283,2]
[382969683,1756788070478,-500.0,0.00013283,2]
[382969684,1756788070500,-500.0,0.00013283,2]
[382969685,1756788070522,-151.0,0.00013283,2]
[382969686,1756788070546,-500.0,0.00013284,2]
[382969687,1756788070572,-500.0,0.00013284,2]
[382969688,1756788070597,-266.34031194,0.00013284,2]
[382969689,1756788070622,-500.0,0.00013284,2]
[382969690,1756788070647,-500.0,0.00013284,2]
[382969691,1756788070672,-500.0,0.00013284,2]
[382969692,1756788070698,-500.0,0.00013284,2]
[382969693,1756788070722,-500.0,0.00013284,2]
[382969694,1756788070745,-296.21766013,0.00013284,2]
[382969695,1756788070767,-500.0,0.00013284,2]
[382969696,1756788070790,-500.0,0.00013284,2]
[382969697,1756788070813,-500.0,0.00013284,2]
[382969698,1756788070839,-500.0,0.00013284,2]
[382969699,1756788070863,-500.0,0.00013284,2]
[382969700,1756788070890,-500.0,0.00013284,2]
[382969701,1756788070919,-500.0,0.00013284,2]
[382969702,1756788070943,-500.0,0.00013284,2]
[382969703,1756788070968,-600.0,0.00013284,2]
[382969704,1756788070992,-300.0,0.00013284,2]
[382969705,1756788071015,-500.0,0.00013284,2]
[382969706,1756788071038,-550.0,0.00013284,2]
[382969707,1756788071060,-242.26968683,0.00013284,2]
[382969708,1756788071086,-599.12148183,0.00013284,2]
[382969709,1756788071110,-599.12148183,0.00013284,2]
[382969710,1756788071134,-599.12148183,0.00013284,2]
[382969711,1756788071159,-599.12148183,0.00013284,2]
[382969712,1756788071184,-599.12148183,0.00013284,2]
[382969713,1756788071209,-599.12148183,0.00013284,2]
[382969714,1756788071234,-599.12148183,0.00013284,2]
[382969715,1756788071258,-599.12148183,0.00013284,2]
[382969716,1756788071285,-599.12148183,0.00013284,2]
[382969717,1756788071307,-151.0,0.00013284,2]
[382969718,1756788071331,-151.0,0.00013284,2]
[382969719,1756788071354,-151.0,0.00013284,2]
[382969720,1756788071380,-151.0,0.00013284,2]
[382969721,1756788071402,-151.0,0.00013284,2]
[382969722,1756788071424,-500.0,0.00013284,2]
[382969723,1756788071447,-151.0,0.00013284,2]
[382969724,1756788071470,-35815.55481124,0.00013285,2]
[382969737,1756788423136,300.0,0.00012999,2]
[382969741,1756788495244,2927.56427842,0.00012889,2]
[382969742,1756788519158,425.35500826,0.00012969,2]
[382969743,1756788543208,425.35500826,0.00012969,2]
[382969744,1756788566419,425.35500826,0.00012969,2]
[382969745,1756788590920,425.35500826,0.00012969,2]
[382969746,1756788616264,425.35500826,0.00012969,2]
[382969755,1756788632127,-425.35500826,0.000131,2]
[382969756,1756788632136,-300.0,0.00013182,2]
[382969759,1756788632147,-1200.0,0.00013182,2]
[382969760,1756788632156,-200.06383299,0.00013183,2]
[382969762,1756788632167,-500.0,0.00013183,2]
[382969765,1756788632178,-500.0,0.00013183,2]
[382969766,1756788632189,-235.03591646,0.00013183,2]
[382969767,1756788632199,-443.54701455,0.00013183,2]
[382969768,1756788632209,-225.0,0.00013183,2]
[382969769,1756788632218,-386.84833635,0.00013183,2]
[382969770,1756788632227,-554.88233856,0.00013183,2]
[382969771,1756788632237,-350.58457828,0.00013184,2]
[382969773,1756788632246,-30611.40944864,0.00013184,2]
[382969776,1756788632271,-17696.89202332,0.00013184,2]
[382969778,1756788632280,-3028.00651087,0.000132,2]
[382969780,1756788632291,-6972.29777048,0.000132,2]
[382969782,1756788632300,-151.0,0.00013282,2]
[382969784,1756788632309,-151.0,0.00013282,2]
[382969786,1756788632319,-151.0,0.00013282,2]
[382969787,1756788632328,-151.0,0.00013282,2]
[382969788,1756788632338,-356.02699915,0.00013282,2]
[382969789,1756788632348,-500.0,0.00013282,2]
[382969790,1756788632358,-500.0,0.00013282,2]
[382969791,1756788632368,-500.0,0.00013282,2]
[382969792,1756788632377,-500.0,0.00013282,2]
[382969793,1756788632387,-500.0,0.00013282,2]
[382969794,1756788632397,-500.0,0.00013282,2]
[382969795,1756788632406,-500.0,0.00013282,2]
[382969796,1756788632415,-151.0,0.00013283,2]
[382969797,1756788632424,-76739.91328885,0.00013284,2]
[382969798,1756788632436,-8458.21754421,0.00013284,2]
[382969799,1756788632447,-1160.96061613,0.00013284,2]
[382970077,1756788643291,-3646.81769765,0.00013149,2]
[382970078,1756788643301,-500.0,0.00013282,2]
[382970079,1756788643311,-646.81769765,0.00013282,2]
[382970080,1756788643321,-500.0,0.00013282,2]
[382970081,1756788643331,-500.0,0.00013282,2]
[382970082,1756788643340,-500.0,0.00013282,2]
[382970084,1756788643351,-500.0,0.00013282,2]
[382970086,1756788643360,-500.0,0.00013282,2]
[382970088,1756788643369,-41125.27218286,0.00013284,2]
[382970090,1756788643378,-151.0,0.00013284,2]
[382970091,1756788643387,-151.0,0.00013284,2]
[382970093,1756788643396,-151.0,0.00013284,2]
[382970095,1756788643406,-151.0,0.00013285,2]
[382970096,1756788643415,-27709.8559583,0.00013285,2]
[382970097,1756788643425,-500.0,0.00013288,2]
[382970098,1756788643435,-350.58457827,0.00013288,2]
[382970099,1756788643444,-169.90116909,0.00013378,2]
[382970100,1756788643453,-1170.1513974,0.00013381,2]
[382970101,1756788643464,-1000.0,0.00013384,2]
[382970102,1756788643473,-76.73967486,0.00013386,2]
[382970103,1756788643485,-1923.26032514,0.00013386,2]
[382970104,1756788643497,-352.26,0.00013386,2]
[382970105,1756788643506,-151.41485597,0.00013387,2]
[382970106,1756788643516,-151.0,0.00013387,2]
[382970107,1756788643525,-151.0,0.00013387,2]
[382970108,1756788643535,-151.0,0.00013387,2]
[382970109,1756788643544,-500.0,0.00013387,2]
[382970110,1756788643558,-151.0,0.00013387,2]
[382970111,1756788643568,-151.0,0.00013387,2]
[382970112,1756788643579,-151.0,0.00013387,2]
[382970113,1756788643588,-151.0,0.00013387,2]
[382970114,1756788643599,-151.0,0.00013387,2]
[382970115,1756788643608,-500.0,0.00013387,2]
[382970116,1756788643617,-152.96985194,0.00013387,2]
[382970117,1756788643626,-151.0,0.00013387,2]
[382970118,1756788643637,-168.0,0.00013391,2]
[382970119,1756788643647,-350.58457827,0.00013392,2]
[382970120,1756788643656,-975.0,0.00013402,2]
[382970121,1756788643665,-799.23089416,0.00013402,2]
[382970146,1756788646378,-1353.76910584,0.00013402,2]
[382970148,1756788646388,-632.0,0.00013402,2]
[382970150,1756788646398,-409.0,0.00013402,2]
[382970152,1756788646408,-151.0,0.00013404,2]
[382970154,1756788646418,-222.55986326,0.00013404,2]
[382970156,1756788646427,-500.0,0.00013404,2]
[382970158,1756788646437,-151.0,0.00013404,2]
[382970160,1756788646447,-500.0,0.00013404,2]
[382970162,1756788646458,-259.56427842,0.00013404,2]
[382970164,1756788646467,-151.0,0.00013404,2]
[382970166,1756788646477,-241.60005738,0.00013404,2]
[382970168,1756788646487,-151.0,0.00013404,2]
[382970170,1756788646497,-151.0,0.00013404,2]
[382970172,1756788646506,-151.0,0.00013404,2]
[382970174,1756788646515,-151.0,0.00013404,2]
[382970176,1756788646526,-319.81218334,0.00013404,2]
[382970178,1756788646535,-1509.89,0.00013441,2]
[382970180,1756788646544,-182.38251808,0.00013487,2]
[382970182,1756788646556,-350.58457827,0.00013495,2]
[382970184,1756788646566,-150.95,0.00013499,2]
[382970186,1756788646576,-590.69099,0.000135,2]
[382970188,1756788646585,-153.63725555,0.00013557,2]
[382970190,1756788646595,-500.0,0.00013557,2]
[382970192,1756788646604,-151.0,0.00013557,2]
[382970195,1756788646614,-151.0,0.00013557,2]
[382970196,1756788646624,-151.46232845,0.00013557,2]
[382970198,1756788646634,-500.0,0.00013557,2]
[382970200,1756788646643,-249.81062628,0.00013557,2]
[382970202,1756788646652,-500.0,0.00013557,2]
[382970204,1756788646661,-178.5735804,0.00013557,2]
[382970206,1756788646671,-500.0,0.00013562,2]
[382970208,1756788646680,-1017.65713104,0.0001358,2]
[382970210,1756788646690,-600.0,0.0001358,2]
[382970212,1756788646699,-289.007,0.00013598,2]
[382970214,1756788646709,-579.3087787,0.00013598,2]
[382970216,1756788646719,-3000.0,0.00013599,2]
[382970218,1756788646730,-350.58457827,0.00013599,2]
[382970220,1756788646741,-800.83869151,0.000136,2]
[382970222,1756788646751,-161.4210731,0.000136,2]
[382970224,1756788646760,-330.1019381,0.000136,2]
[382970226,1756788646770,-151.0,0.00013661,2]
[382970228,1756788646780,-152.17637571,0.00013661,2]
[382970230,1756788646790,-151.0,0.00013661,2]
[382970232,1756788646799,-502.87964742,0.00013661,2]
[382970234,1756788646809,-151.0,0.00013661,2]
[382970236,1756788646819,-151.44573823,0.00013661,2]
[382970238,1756788646828,-151.0,0.00013661,2]
[382970240,1756788646838,-151.0,0.00013661,2]
[382970242,1756788646847,-151.0,0.00013661,2]
[382970243,1756788646857,-500.0,0.00013661,2]
[382970244,1756788646866,-230.4302325,0.00013661,2]
[382970245,1756788646876,-204.5,0.00013666,2]
[382970246,1756788646887,-500.0,0.00013673,2]
[382970247,1756788646897,-500.0,0.00013673,2]
[382970248,1756788646907,-209.11150238,0.00013673,2]
[382970249,1756788646916,-647.74143111,0.00013673,2]
[382970250,1756788646926,-500.0,0.00013673,2]
[382970251,1756788646936,-500.0,0.00013673,2]
[382970252,1756788646945,-500.0,0.00013673,2]
[382970253,1756788646955,-500.0,0.00013673,2]
[382970254,1756788646964,-500.0,0.00013673,2]
[382970255,1756788646974,-501.08494303,0.00013673,2]
[382970256,1756788646984,-500.63740246,0.00013673,2]
[382970257,1756788646994,-501.57203998,0.00013673,2]
[382970258,1756788647004,-500.0,0.00013673,2]
[382970259,1756788647015,-500.0,0.00013673,2]
[382970260,1756788647025,-500.0,0.00013673,2]
[382970261,1756788647034,-500.0,0.00013673,2]
[382970262,1756788647044,-151.0,0.00013678,2]
[382970263,1756788647053,-500.0,0.00013678,2]
[382970264,1756788647063,-151.21659097,0.00013678,2]
[382970265,1756788647072,-500.0,0.00013678,2]
[382970266,1756788647082,-151.0,0.00013678,2]
[382970267,1756788647091,-151.0,0.00013678,2]
[382970268,1756788647101,-151.0,0.00013678,2]
[382970269,1756788647110,-198.0,0.00013678,2]
[382970270,1756788647120,-541.42,0.00013698,2]
[382970271,1756788647130,-482.32342279,0.00013698,2]
[382970272,1756788647139,-484.62169638,0.00013698,2]
[382970273,1756788647148,-480.0,0.00013698,2]
[382970274,1756788647157,-480.0,0.00013698,2]
[382970275,1756788647167,-482.31126863,0.00013698,2]
[382970276,1756788647177,-480.0,0.00013698,2]
[382970277,1756788647187,-480.0,0.00013698,2]
[382970278,1756788647196,-480.0,0.00013698,2]
[382970279,1756788647205,-480.0,0.00013698,2]
[382970280,1756788647214,-480.0,0.00013698,2]
[382970281,1756788647224,-423.00549189,0.00013698,2]
[382970282,1756788647234,-480.0,0.00013698,2]
[382970283,1756788647243,-480.0,0.00013698,2]
[382970284,1756788647253,-480.0,0.00013698,2]
[382970285,1756788647263,-482.84322526,0.00013698,2]
[382970286,1756788647273,-439.16068806,0.00013698,2]
[382970287,1756788647284,-480.0,0.00013698,2]
[382970288,1756788647294,-482.54362758,0.00013698,2]
[382970289,1756788647303,-482.23150342,0.00013698,2]
[382970290,1756788647312,-481.70451186,0.00013698,2]
[382970291,1756788647323,-480.0,0.00013698,2]
[382970292,1756788647333,-480.0,0.00013698,2]
[382970293,1756788647342,-480.0,0.00013698,2]
[382970294,1756788647351,-199.18093957,0.00013698,2]
[382970295,1756788647361,-480.0,0.00013698,2]
[382970296,1756788647371,-480.0,0.00013698,2]
[382970297,1756788647380,-481.94494186,0.00013698,2]
[382970298,1756788647390,-480.0,0.00013698,2]
[382970299,1756788647399,-480.0,0.00013698,2]
[382970300,1756788647408,-480.0,0.00013698,2]
[382970301,1756788647417,-480.0,0.00013698,2]
[382970302,1756788647427,-480.0,0.00013698,2]
[382970303,1756788647437,-480.0,0.00013698,2]
[382970304,1756788647446,-329.14476565,0.00013698,2]
[382970305,1756788647455,-480.91885775,0.00013698,2]
[382970306,1756788647465,-480.0,0.00013698,2]
[382970307,1756788647474,-480.0,0.00013698,2]
[382970308,1756788647483,-484.02693004,0.00013698,2]
[382970309,1756788647493,-481.04724315,0.00013698,2]
[382970310,1756788647502,-603.95323752,0.00013698,2]
[382970311,1756788647512,-481.23675003,0.00013698,2]
[382970312,1756788647522,-489.04096272,0.00013698,2]
[382970313,1756788647532,-480.0,0.00013698,2]
[382970314,1756788647542,-480.0,0.00013698,2]
[382970315,1756788647552,-477.42674879,0.00013698,2]
[382970316,1756788647566,-480.0,0.00013698,2]
[382970317,1756788647575,-480.0,0.00013698,2]
[382970318,1756788647584,-482.49930831,0.00013698,2]
[382970319,1756788647594,-480.0,0.00013698,2]
[382970320,1756788647605,-282.00458949,0.00013698,2]
[382970321,1756788647615,-482.55487386,0.00013698,2]
[382970322,1756788647625,-513.57548322,0.00013698,2]
[382970323,1756788647636,-480.0,0.00013698,2]
[382970324,1756788647646,-482.44785475,0.00013698,2]
[382970325,1756788647655,-484.81570526,0.00013698,2]
[382970326,1756788647665,-481.38775884,0.00013698,2]
[382970327,1756788647675,-481.55438843,0.00013698,2]
[382970328,1756788647684,-297.79859498,0.00013698,2]
[382970329,1756788647694,-484.55240159,0.00013698,2]
[382970330,1756788647703,-530.94,0.00013698,2]
[382970331,1756788647713,-481.80266673,0.00013698,2]
[382970332,1756788647722,-520.23667146,0.00013698,2]
[382970333,1756788647731,-150.95173316,0.00013698,2]
[382970334,1756788647740,-480.0,0.00013698,2]
[382970335,1756788647749,-480.0,0.00013698,2]
[382970336,1756788647759,-513.32,0.00013698,2]
[382970337,1756788647768,-480.0,0.00013698,2]
[382970338,1756788647777,-480.0,0.00013698,2]
[382970339,1756788647786,-480.0,0.00013698,2]
[382970340,1756788647796,-480.0,0.00013698,2]
[382970341,1756788647805,-480.0,0.00013698,2]
[382970342,1756788647814,-480.0,0.00013698,2]
[382970343,1756788647823,-482.02795593,0.00013698,2]
[382970344,1756788647833,-495.59890647,0.00013698,2]
[382970345,1756788647842,-480.0,0.00013698,2]
[382970346,1756788647852,-480.0,0.00013698,2]
[382970347,1756788647861,-480.0,0.00013698,2]
[382970348,1756788647871,-480.0,0.00013698,2]
[382970349,1756788647880,-480.0,0.00013698,2]
[382970350,1756788647890,-480.0,0.00013698,2]
[382970351,1756788647899,-499.25984493,0.00013698,2]
[382970352,1756788647908,-519.44,0.00013698,2]
[382970353,1756788647917,-480.0,0.00013698,2]
[382970354,1756788647926,-483.15721734,0.00013698,2]
[382970355,1756788647935,-480.0,0.00013698,2]
[382970356,1756788647945,-480.0,0.00013698,2]
[382970357,1756788647955,-480.0,0.00013698,2]
[382970358,1756788647965,-480.0,0.00013698,2]
[382970359,1756788647975,-480.0,0.00013698,2]
[382970360,1756788647986,-480.0,0.00013698,2]
[382970361,1756788647995,-480.0,0.00013698,2]
[382970362,1756788648005,-480.0,0.00013698,2]
[382970363,1756788648014,-484.82236996,0.00013698,2]
[382970364,1756788648024,-480.0,0.00013698,2]
[382970365,1756788648034,-480.0,0.00013698,2]
[382970366,1756788648043,-480.0,0.00013698,2]
[382970367,1756788648052,-512.49,0.00013698,2]
[382970368,1756788648062,-482.12101876,0.00013698,2]
[382970369,1756788648072,-480.0,0.00013698,2]
[382970370,1756788648082,-482.45186039,0.00013698,2]
[382970371,1756788648091,-480.0,0.00013698,2]
[382970372,1756788648102,-605.9185386,0.00013698,2]
[382970373,1756788648112,-486.81048322,0.00013698,2]
[382970374,1756788648122,-480.0,0.00013698,2]
[382970375,1756788648132,-483.84491962,0.00013698,2]
[382970376,1756788648142,-480.0,0.00013698,2]
[382970377,1756788648152,-480.0,0.00013698,2]
[382970378,1756788648161,-483.35298858,0.00013698,2]
[382970379,1756788648171,-480.0,0.00013698,2]
[382970380,1756788648180,-483.07869859,0.00013698,2]
[382970381,1756788648190,-481.78988233,0.00013698,2]
[382970382,1756788648199,-480.0,0.00013698,2]
[382970383,1756788648209,-483.59148426,0.00013698,2]
[382970384,1756788648219,-480.0,0.00013698,2]
[382970385,1756788648229,-481.17455813,0.00013698,2]
[382970386,1756788648240,-483.27346041,0.00013698,2]
[382970387,1756788648254,-482.04683042,0.00013698,2]
[382970388,1756788648264,-480.0,0.00013698,2]
[382970389,1756788648273,-518.13444932,0.00013698,2]
[382970390,1756788648283,-480.88901772,0.00013698,2]
[382970391,1756788648292,-481.80504575,0.00013698,2]
[382970392,1756788648301,-481.74250954,0.00013698,2]
[382970393,1756788648311,-482.6919603,0.00013698,2]
[382970394,1756788648320,-495.86,0.00013698,2]
[382970395,1756788648330,-480.0,0.00013698,2]
[382970396,1756788648340,-480.0,0.00013698,2]
[382970397,1756788648349,-480.0,0.00013698,2]
[382970398,1756788648359,-481.56767422,0.00013698,2]
[382970399,1756788648369,-480.0,0.00013698,2]
[382970400,1756788648378,-480.0,0.00013698,2]
[382970401,1756788648388,-530.71642781,0.00013698,2]
[382970402,1756788648398,-480.0,0.00013698,2]
[382970403,1756788648407,-156.59538374,0.00013698,2]
[382970404,1756788648417,-332.43315672,0.00013698,2]
[382970405,1756788648571,-571.71,0.00013698,2]
[382970406,1756788648586,-484.34589398,0.00013698,2]
[382970407,1756788648595,-480.0,0.00013698,2]
[382970408,1756788648605,-480.0,0.00013698,2]
[382970409,1756788648615,-480.0,0.00013698,2]
[382970410,1756788648630,-480.0,0.00013698,2]
[382970411,1756788648640,-643.0,0.00013698,2]
[382970412,1756788648652,-480.0,0.00013698,2]
[382970413,1756788648662,-484.44991083,0.00013698,2]
[382970414,1756788648672,-481.84869871,0.00013698,2]
[382970415,1756788648682,-482.10440408,0.00013698,2]
[382970416,1756788648694,-480.0,0.00013698,2]
[382970417,1756788648705,-480.0,0.00013698,2]
[382970418,1756788648715,-480.0,0.00013698,2]
[382970419,1756788648724,-482.64537589,0.00013698,2]
[382970420,1756788648734,-481.31642071,0.00013698,2]
[382970421,1756788648744,-482.8296219,0.00013698,2]
[382970422,1756788648753,-541.37,0.00013698,2]
[382970423,1756788648765,-481.73119685,0.00013698,2]
[382970424,1756788648782,-480.0,0.00013698,2]
[382970425,1756788648791,-480.0,0.00013698,2]
[382970426,1756788648801,-582.31,0.00013698,2]
[382970427,1756788648812,-480.0,0.00013698,2]
[382970428,1756788648821,-696.78,0.00013698,2]
[382970429,1756788648832,-482.79632382,0.00013698,2]
[382970430,1756788648841,-480.49071288,0.00013698,2]
[382970431,1756788648851,-481.6914433,0.00013698,2]
[382970432,1756788648860,-480.0,0.00013698,2]
[382970433,1756788648870,-480.0,0.00013698,2]
[382970434,1756788648879,-480.0,0.00013698,2]
[382970435,1756788648889,-559.19428281,0.00013698,2]
[382970436,1756788648899,-480.0,0.00013698,2]
[382970437,1756788648908,-480.0,0.00013698,2]
[382970438,1756788648917,-480.0,0.00013698,2]
[382970439,1756788648927,-481.52865425,0.00013698,2]
[382970440,1756788648936,-163.51589948,0.00013698,2]
[382970441,1756788648946,-484.80158554,0.00013698,2]
[382970442,1756788648956,-480.0,0.00013698,2]
[382970443,1756788648965,-482.05800819,0.00013698,2]
[382970444,1756788648975,-480.0,0.00013698,2]
[382970445,1756788648984,-485.8277154,0.00013698,2]
[382970446,1756788648994,-494.85079562,0.00013698,2]
[382970447,1756788649003,-443.30168079,0.00013698,2]
[382970448,1756788649013,-480.0,0.00013698,2]
[382970449,1756788649023,-480.0,0.00013698,2]
[382970450,1756788649033,-480.0,0.00013698,2]
[382970451,1756788649042,-480.0,0.00013698,2]
[382970452,1756788649052,-480.0,0.00013698,2]
[382970453,1756788649061,-484.18075354,0.00013698,2]
[382970454,1756788649071,-480.0,0.00013698,2]
[382970455,1756788649080,-482.98860614,0.00013698,2]
[382970456,1756788649089,-482.24116412,0.00013698,2]
[382970457,1756788649099,-480.0,0.00013698,2]
[382970458,1756788649109,-480.0,0.00013698,2]
[382970459,1756788649119,-482.21535573,0.00013698,2]
[382970460,1756788649128,-480.0,0.00013698,2]
[382970461,1756788649137,-481.7082532,0.00013698,2]
[382970462,1756788649147,-482.1892703,0.00013698,2]
[382970463,1756788649156,-480.0,0.00013698,2]
[382970464,1756788649167,-482.17077476,0.00013698,2]
[382970465,1756788649176,-480.0,0.00013698,2]
[382970466,1756788649186,-480.0,0.00013698,2]
[382970467,1756788649195,-480.0,0.00013698,2]
[382970468,1756788649206,-480.0,0.00013698,2]
[382970469,1756788649215,-480.0,0.00013698,2]
[382970470,1756788649225,-480.0,0.00013698,2]
[382970471,1756788649235,-483.76956602,0.00013698,2]
[382970472,1756788649244,-594.08,0.00013698,2]
[382970473,1756788649253,-480.0,0.00013698,2]
[382970474,1756788649263,-480.0,0.00013698,2]
[382970475,1756788649272,-480.0,0.00013698,2]
[382970476,1756788649282,-1497.24,0.00013698,2]
[382970477,1756788649291,-485.91422924,0.00013698,2]
[382970478,1756788649301,-538.25,0.00013698,2]
[382970479,1756788649310,-482.54589304,0.00013698,2]
[382970480,1756788649320,-480.0,0.00013698,2]
[382970481,1756788649330,-485.98474683,0.00013698,2]
[382970482,1756788649340,-483.23936644,0.00013698,2]
[382970483,1756788649349,-442.68709172,0.00013698,2]
[382970484,1756788649360,-396.03781708,0.00013698,2]
[382970485,1756788649371,-480.0,0.00013698,2]
[382970486,1756788649380,-481.49873271,0.00013698,2]
[382970487,1756788649390,-297.36742787,0.00013698,2]
[382970488,1756788649399,-486.10118071,0.00013698,2]
[382970489,1756788649409,-480.0,0.00013698,2]
[382970490,1756788649419,-480.0,0.00013698,2]